[Event "*** Titled Tuesday Blitz"]
[Site "Chess.com"]
[Date "2019.11.05"]
[Round "7"]
[White "Hadza_3"]
[Black "MartinZumsande"]
[Result "0-1"]
[WhiteElo "2395"]
[BlackElo "2563"]
[TimeControl "180+2"]
[EndTime "14:36:42 PST"]
[Termination "MartinZumsande won by checkmate"]

1. e4 {[%clk 0:03:01.9]} 1... e6 {[%clk 0:03:00.8]} 2. Nf3 {[%clk 0:02:59.4]}
2... d5 {[%clk 0:03:01.9]} 3. e5 {[%clk 0:03:00.2]} 3... c5 {[%clk 0:03:02]} 4.
g3 {[%clk 0:03:01.5]} 4... Nc6 {[%clk 0:02:59.6]} 5. Bg2 {[%clk 0:03:02.6]} 5...
Qc7 {[%clk 0:02:53.2]} 6. Qe2 {[%clk 0:03:03.1]} 6... Nge7 {[%clk 0:02:54.7]} 7.
O-O {[%clk 0:03:03.7]} 7... Nf5 {[%clk 0:02:55.5]} 8. c3 {[%clk 0:03:04.2]} 8...
h5 {[%clk 0:02:50.6]} 9. h4 {[%clk 0:03:04.6]} 9... b6 {[%clk 0:02:48.3]} 10. d3
{[%clk 0:03:05.3]} 10... Bb7 {[%clk 0:02:46]} 11. Bf4 {[%clk 0:03:06.4]} 11...
Be7 {[%clk 0:02:44.2]} 12. a4 {[%clk 0:03:07.3]} 12... a5 {[%clk 0:02:43.4]} 13.
Na3 {[%clk 0:03:08]} 13... Ba6 {[%clk 0:02:42.1]} 14. Nb5 {[%clk 0:03:07.7]}
14... Bxb5 {[%clk 0:02:43.4]} 15. axb5 {[%clk 0:03:09.6]} 15... Na7 {[%clk
0:02:43.3]} 16. c4 {[%clk 0:03:10.5]} 16... dxc4 {[%clk 0:02:31.8]} 17. dxc4
{[%clk 0:03:00.2]} 17... Rd8 {[%clk 0:02:32.7]} 18. Rad1 {[%clk 0:02:57.7]}
18... O-O {[%clk 0:02:31.7]} 19. Bg5 {[%clk 0:02:50.1]} 19... Nc8 {[%clk
0:02:19.9]} 20. Bxe7 {[%clk 0:02:46.7]} 20... Ncxe7 {[%clk 0:02:20.9]} 21. Ng5
{[%clk 0:02:48]} 21... g6 {[%clk 0:02:18.7]} 22. Ne4 {[%clk 0:02:42.5]} 22...
Kg7 {[%clk 0:02:13.6]} 23. Nf6 {[%clk 0:02:05.6]} 23... Ng8 {[%clk 0:01:55.6]}
24. Nxh5+ {[%clk 0:01:20.7]} 24... gxh5 {[%clk 0:01:54.7]} 25. Qxh5 {[%clk
0:01:22.6]} 25... Qe7 {[%clk 0:01:45.2]} 26. Be4 {[%clk 0:01:19]} 26... Ngh6
{[%clk 0:01:26.3]} 27. Kg2 {[%clk 0:01:08.4]} 27... Rxd1 {[%clk 0:01:20.7]} 28.
Rxd1 {[%clk 0:01:08.5]} 28... Rd8 {[%clk 0:01:22.3]} 29. Rh1 {[%clk 0:00:55.6]}
29... Rd4 {[%clk 0:01:17.5]} 30. Bb1 {[%clk 0:00:36.9]} 30... Qb7+ {[%clk
0:01:12.1]} 31. Kh2 {[%clk 0:00:36.9]} 31... Ng4+ {[%clk 0:00:47.3]} 32. Kg1
{[%clk 0:00:21.1]} 32... Rd1# {[%clk 0:00:45.6]} 0-1

[Event "*** Titled Tuesday Blitz"]
[Site "Chess.com"]
[Date "2019.11.05"]
[Round "7"]
[White "saraswathii"]
[Black "twitchTriniCupid"]
[Result "0-1"]
[WhiteElo "2218"]
[BlackElo "2434"]
[TimeControl "180+2"]
[EndTime "14:36:42 PST"]
[Termination "twitchTriniCupid won on time"]

1. e4 {[%clk 0:03:01.9]} 1... c6 {[%clk 0:03:00.8]} 2. d3 {[%clk 0:03:02.5]}
2... d5 {[%clk 0:03:02.7]} 3. Nd2 {[%clk 0:03:02.6]} 3... Nf6 {[%clk 0:02:54.6]}
4. Ngf3 {[%clk 0:03:02.7]} 4... Bg4 {[%clk 0:02:55.1]} 5. h3 {[%clk 0:03:01.3]}
5... Bh5 {[%clk 0:02:56.1]} 6. g4 {[%clk 0:03:00.1]} 6... Bg6 {[%clk 0:02:56.7]}
7. e5 {[%clk 0:03:00.3]} 7... Nfd7 {[%clk 0:02:57.4]} 8. d4 {[%clk 0:03:00.3]}
8... e6 {[%clk 0:02:50.6]} 9. c3 {[%clk 0:02:59.9]} 9... h5 {[%clk 0:02:50]} 10.
g5 {[%clk 0:02:46.4]} 10... h4 {[%clk 0:02:44.6]} 11. Bg2 {[%clk 0:02:19.5]}
11... c5 {[%clk 0:02:44.9]} 12. Qb3 {[%clk 0:01:50.6]} 12... Qc7 {[%clk
0:02:44.4]} 13. O-O {[%clk 0:01:38.4]} 13... Nc6 {[%clk 0:02:44.4]} 14. a3
{[%clk 0:01:29.6]} 14... Be7 {[%clk 0:02:43.2]} 15. Re1 {[%clk 0:01:15.4]} 15...
a6 {[%clk 0:02:32.3]} 16. Nf1 {[%clk 0:01:13.6]} 16... Bd3 {[%clk 0:01:56.9]}
17. Be3 {[%clk 0:01:03.5]} 17... b5 {[%clk 0:01:51.5]} 18. dxc5 {[%clk
0:00:41.1]} 18... Nxc5 {[%clk 0:01:37.8]} 19. Qd1 {[%clk 0:00:24.8]} 19... Be4
{[%clk 0:01:28.8]} 20. N1d2 {[%clk 0:00:16.5]} 20... Bf5 {[%clk 0:01:28.6]} 21.
Nd4 {[%clk 0:00:13.6]} 21... Nxd4 {[%clk 0:01:27.8]} 22. cxd4 {[%clk 0:00:13.9]}
22... Nd3 {[%clk 0:01:27.8]} 23. Rf1 {[%clk 0:00:13.7]} 23... Nxb2 {[%clk
0:01:28.4]} 24. Qb3 {[%clk 0:00:15.1]} 24... Nc4 {[%clk 0:01:29]} 25. Rac1
{[%clk 0:00:15.3]} 25... Qa5 {[%clk 0:01:25.4]} 26. Nxc4 {[%clk 0:00:16]} 26...
bxc4 {[%clk 0:01:24.1]} 27. Qb7 {[%clk 0:00:16.5]} 27... Qd8 {[%clk 0:01:14.3]}
28. Rfd1 {[%clk 0:00:05.9]} 28... O-O {[%clk 0:01:13.8]} 29. f4 {[%clk 0:00:04]}
29... Bxa3 {[%clk 0:01:09.2]} 30. Ra1 {[%clk 0:00:04.2]} 30... Rb8 {[%clk
0:01:06.4]} 31. Qxa6 {[%clk 0:00:03.8]} 31... Bb2 {[%clk 0:01:07.1]} 32. Ra2
{[%clk 0:00:03.2]} 32... c3 {[%clk 0:01:07.9]} 33. Qf1 {[%clk 0:00:02]} 33... c2
{[%clk 0:01:07.7]} 34. Re1 {[%clk 0:00:02.3]} 34... Qb6 {[%clk 0:01:02.7]} 0-1

[Event "*** Titled Tuesday Blitz"]
[Site "Chess.com"]
[Date "2019.11.05"]
[Round "7"]
[White "GasconJR"]
[Black "gorgeous1083"]
[Result "1-0"]
[WhiteElo "2471"]
[BlackElo "1997"]
[TimeControl "180+2"]
[EndTime "14:36:51 PST"]
[Termination "GasconJR won on time"]

1. e4 {[%clk 0:03:01.9]} 1... e5 {[%clk 0:03:00.4]} 2. Nf3 {[%clk 0:03:02.6]}
2... Nc6 {[%clk 0:03:01.9]} 3. Bc4 {[%clk 0:03:03.8]} 3... Bc5 {[%clk
0:03:03.2]} 4. d3 {[%clk 0:03:04.5]} 4... d6 {[%clk 0:03:00.9]} 5. O-O {[%clk
0:03:04.3]} 5... h6 {[%clk 0:02:59.5]} 6. c3 {[%clk 0:03:04.2]} 6... Nf6 {[%clk
0:03:00.2]} 7. Nbd2 {[%clk 0:03:03.8]} 7... O-O {[%clk 0:03:00.7]} 8. h3 {[%clk
0:03:04]} 8... a6 {[%clk 0:03:00.3]} 9. a4 {[%clk 0:03:04.6]} 9... Ne7 {[%clk
0:02:49.3]} 10. d4 {[%clk 0:02:51.7]} 10... exd4 {[%clk 0:02:42.9]} 11. cxd4
{[%clk 0:02:51.6]} 11... Ba7 {[%clk 0:02:42.7]} 12. Bd3 {[%clk 0:02:45.9]} 12...
Nc6 {[%clk 0:02:11.8]} 13. d5 {[%clk 0:02:26.4]} 13... Ne5 {[%clk 0:02:07.1]}
14. Nxe5 {[%clk 0:02:13.7]} 14... dxe5 {[%clk 0:02:09]} 15. Nc4 {[%clk
0:02:14.2]} 15... Qe7 {[%clk 0:02:04]} 16. b4 {[%clk 0:02:07]} 16... Bd7 {[%clk
0:01:55.1]} 17. Ba3 {[%clk 0:02:03.8]} 17... Rfe8 {[%clk 0:01:47.1]} 18. Rc1
{[%clk 0:01:52.4]} 18... Bd4 {[%clk 0:01:43.4]} 19. Qb3 {[%clk 0:01:45.6]} 19...
b5 {[%clk 0:01:38.1]} 20. Na5 {[%clk 0:01:32.5]} 20... bxa4 {[%clk 0:01:28.8]}
21. Qc2 {[%clk 0:01:32.8]} 21... Bb5 {[%clk 0:01:18.5]} 22. Rfe1 {[%clk
0:01:29.2]} 22... Qd6 {[%clk 0:01:03.4]} 23. Nc6 {[%clk 0:01:14.8]} 23... Rac8
{[%clk 0:00:26.2]} 24. Nxd4 {[%clk 0:00:32.2]} 24... exd4 {[%clk 0:00:24.1]} 25.
Bb2 {[%clk 0:00:31.6]} 25... Qe5 {[%clk 0:00:12.4]} 26. Bxb5 {[%clk 0:00:28.9]}
26... axb5 {[%clk 0:00:12.7]} 27. Qd3 {[%clk 0:00:22.4]} 1-0

[Event "*** Titled Tuesday Blitz"]
[Site "Chess.com"]
[Date "2019.11.05"]
[Round "7"]
[White "albano87"]
[Black "Feegus"]
[Result "1-0"]
[WhiteElo "2022"]
[BlackElo "2330"]
[TimeControl "180+2"]
[EndTime "14:36:51 PST"]
[Termination "albano87 won by resignation"]

1. d4 {[%clk 0:03:01.8]} 1... Nf6 {[%clk 0:02:10.7]} 2. Nf3 {[%clk 0:02:59.4]}
2... g6 {[%clk 0:02:06]} 3. g3 {[%clk 0:02:59.9]} 3... Bg7 {[%clk 0:02:07.9]} 4.
Bg2 {[%clk 0:03:00.5]} 4... O-O {[%clk 0:02:09.8]} 5. O-O {[%clk 0:03:00.8]}
5... d5 {[%clk 0:02:11.7]} 6. c4 {[%clk 0:02:57.3]} 6... dxc4 {[%clk 0:02:13.6]}
7. Na3 {[%clk 0:02:55.6]} 7... c3 {[%clk 0:02:15.2]} 8. bxc3 {[%clk 0:02:56.9]}
8... c5 {[%clk 0:02:17.1]} 9. Ne5 {[%clk 0:02:57.1]} 9... cxd4 {[%clk 0:02:17]}
10. cxd4 {[%clk 0:02:58]} 10... Nbd7 {[%clk 0:02:16.4]} 11. Nac4 {[%clk
0:02:58.1]} 11... Nxe5 {[%clk 0:02:17]} 12. dxe5 {[%clk 0:02:53.4]} 12... Nd7
{[%clk 0:02:16.1]} 13. Bb2 {[%clk 0:02:49.2]} 13... Nb6 {[%clk 0:02:03.8]} 14.
Qxd8 {[%clk 0:02:29]} 14... Rxd8 {[%clk 0:02:04.9]} 15. Nxb6 {[%clk 0:02:29.8]}
15... axb6 {[%clk 0:01:57.1]} 16. Rfd1 {[%clk 0:02:29.8]} 16... Be6 {[%clk
0:01:56.6]} 17. Bxb7 {[%clk 0:02:29.5]} 17... Rab8 {[%clk 0:01:56.4]} 18. Be4
{[%clk 0:02:07.3]} 18... Bc4 {[%clk 0:01:49.1]} 19. Kf1 {[%clk 0:02:00]} 19...
e6 {[%clk 0:01:43.2]} 20. Ke1 {[%clk 0:01:52.9]} 20... Bf8 {[%clk 0:01:43.1]}
21. Bc3 {[%clk 0:01:53.8]} 21... b5 {[%clk 0:01:43.2]} 22. Ba5 {[%clk
0:01:44.5]} 22... Rxd1+ {[%clk 0:01:26.8]} 23. Kxd1 {[%clk 0:01:45.1]} 23... Bc5
{[%clk 0:01:23.3]} 24. e3 {[%clk 0:01:41.9]} 24... Re8 {[%clk 0:01:10.5]} 25.
Rc1 {[%clk 0:01:32.6]} 25... Re7 {[%clk 0:00:54.8]} 26. a4 {[%clk 0:01:12.2]}
26... Bb3+ {[%clk 0:00:44.1]} 27. Bc2 {[%clk 0:01:12.5]} 27... Rd7+ {[%clk
0:00:38.2]} 28. Ke1 {[%clk 0:01:12.5]} 28... Ba3 {[%clk 0:00:22.9]} 29. Rd1
{[%clk 0:01:09.5]} 29... Rxd1+ {[%clk 0:00:16.9]} 30. Kxd1 {[%clk 0:01:06.1]}
30... Bxc2+ {[%clk 0:00:18.3]} 31. Kxc2 {[%clk 0:01:06.1]} 31... bxa4 {[%clk
0:00:20.2]} 32. Kc3 {[%clk 0:01:01.7]} 32... g5 {[%clk 0:00:20.9]} 33. Bb4
{[%clk 0:00:58.7]} 33... Bc1 {[%clk 0:00:19.4]} 34. Kc2 {[%clk 0:00:57.6]} 1-0

[Event "*** Titled Tuesday Blitz"]
[Site "Chess.com"]
[Date "2019.11.05"]
[Round "7"]
[White "victormago"]
[Black "Vasily85"]
[Result "0-1"]
[WhiteElo "2450"]
[BlackElo "2245"]
[TimeControl "180+2"]
[EndTime "14:37:05 PST"]
[Termination "Vasily85 won on time"]

1. d4 {[%clk 0:03:01.9]} 1... Nf6 {[%clk 0:03:00.7]} 2. c4 {[%clk 0:03:02.9]}
2... e6 {[%clk 0:03:01.6]} 3. Nc3 {[%clk 0:03:03.7]} 3... Bb4 {[%clk 0:03:02.2]}
4. Qc2 {[%clk 0:03:04.1]} 4... O-O {[%clk 0:03:02.5]} 5. Nf3 {[%clk 0:03:04]}
5... c5 {[%clk 0:03:00.5]} 6. dxc5 {[%clk 0:03:04.4]} 6... Na6 {[%clk
0:03:00.9]} 7. g3 {[%clk 0:03:04.1]} 7... Nxc5 {[%clk 0:03:02.4]} 8. Bg2 {[%clk
0:03:04.7]} 8... Nce4 {[%clk 0:03:04]} 9. O-O {[%clk 0:03:05.3]} 9... Nxc3
{[%clk 0:03:05.6]} 10. bxc3 {[%clk 0:03:06.6]} 10... Be7 {[%clk 0:03:07.2]} 11.
Ne5 {[%clk 0:02:56.3]} 11... d6 {[%clk 0:02:58.9]} 12. Nd3 {[%clk 0:02:56]}
12... Qc7 {[%clk 0:02:52.5]} 13. Qb3 {[%clk 0:02:54.9]} 13... Rb8 {[%clk
0:02:27.8]} 14. Bf4 {[%clk 0:02:40.6]} 14... b6 {[%clk 0:02:29]} 15. Rfd1 {[%clk
0:02:37.4]} 15... Ba6 {[%clk 0:02:25]} 16. Nb4 {[%clk 0:02:06.5]} 16... Bxc4
{[%clk 0:02:25.1]} 17. Qb2 {[%clk 0:02:06.8]} 17... Nh5 {[%clk 0:01:44.8]} 18.
Be3 {[%clk 0:01:55.6]} 18... d5 {[%clk 0:01:44.9]} 19. Bf3 {[%clk 0:01:47.6]}
19... Nf6 {[%clk 0:01:44.4]} 20. a4 {[%clk 0:01:42.3]} 20... Rbc8 {[%clk
0:01:40.7]} 21. Rdc1 {[%clk 0:01:38.1]} 21... Ne4 {[%clk 0:01:39.3]} 22. Nd3
{[%clk 0:01:26.5]} 22... Nc5 {[%clk 0:01:31.7]} 23. Rd1 {[%clk 0:01:05.2]} 23...
Bf6 {[%clk 0:00:57.2]} 24. Nxc5 {[%clk 0:01:02.2]} 24... bxc5 {[%clk 0:00:59.1]}
25. Rac1 {[%clk 0:00:56.9]} 25... Qa5 {[%clk 0:00:43.4]} 26. Qa3 {[%clk
0:00:56.4]} 26... Rc6 {[%clk 0:00:26.2]} 27. Rb1 {[%clk 0:00:41.7]} 27... Qxc3
{[%clk 0:00:25.5]} 28. Bxc5 {[%clk 0:00:40.2]} 28... Qxa3 {[%clk 0:00:24.8]} 29.
Bxa3 {[%clk 0:00:41.1]} 29... Rfc8 {[%clk 0:00:24]} 30. Rb7 {[%clk 0:00:41.7]}
30... R6c7 {[%clk 0:00:25.3]} 0-1

[Event "*** Titled Tuesday Blitz"]
[Site "Chess.com"]
[Date "2019.11.05"]
[Round "7"]
[White "semchik73"]
[Black "Witik"]
[Result "0-1"]
[WhiteElo "2405"]
[BlackElo "2586"]
[TimeControl "180+2"]
[EndTime "14:37:07 PST"]
[Termination "Witik won by resignation"]

1. Nf3 {[%clk 0:03:00.8]} 1... Nf6 {[%clk 0:02:57.3]} 2. c4 {[%clk 0:03:02]}
2... d6 {[%clk 0:02:57.5]} 3. d4 {[%clk 0:03:02.4]} 3... Nbd7 {[%clk 0:02:59.4]}
4. Nc3 {[%clk 0:03:03.5]} 4... e5 {[%clk 0:03:01.1]} 5. dxe5 {[%clk 0:03:03]}
5... dxe5 {[%clk 0:03:01.4]} 6. e4 {[%clk 0:03:04.2]} 6... c6 {[%clk 0:03:01.6]}
7. Be2 {[%clk 0:03:02.9]} 7... Bb4 {[%clk 0:03:01.9]} 8. Qc2 {[%clk 0:03:00.5]}
8... a5 {[%clk 0:02:37.3]} 9. a3 {[%clk 0:03:00.2]} 9... Be7 {[%clk 0:02:38]}
10. O-O {[%clk 0:02:59.6]} 10... O-O {[%clk 0:02:38.9]} 11. h3 {[%clk
0:02:58.2]} 11... Qc7 {[%clk 0:02:39.9]} 12. Be3 {[%clk 0:02:59.3]} 12... Bc5
{[%clk 0:02:35.1]} 13. Bxc5 {[%clk 0:02:56.3]} 13... Nxc5 {[%clk 0:02:36.1]} 14.
b4 {[%clk 0:02:56.8]} 14... Ne6 {[%clk 0:02:36.6]} 15. Rfd1 {[%clk 0:02:45.6]}
15... Re8 {[%clk 0:02:23.1]} 16. c5 {[%clk 0:02:37.1]} 16... axb4 {[%clk
0:02:11.6]} 17. axb4 {[%clk 0:02:37.1]} 17... Rxa1 {[%clk 0:02:11.7]} 18. Rxa1
{[%clk 0:02:37.7]} 18... Nd4 {[%clk 0:02:13.4]} 19. Qd3 {[%clk 0:02:27.1]} 19...
Rd8 {[%clk 0:02:11.6]} 20. Nxd4 {[%clk 0:02:20.3]} 20... exd4 {[%clk 0:02:04.1]}
21. Na4 {[%clk 0:02:14.9]} 21... Qf4 {[%clk 0:01:58.7]} 22. Bf3 {[%clk
0:02:11.9]} 22... Be6 {[%clk 0:01:41.2]} 23. Nb6 {[%clk 0:02:10.4]} 23... g5
{[%clk 0:01:37.8]} 24. g3 {[%clk 0:01:46.1]} 24... Qe5 {[%clk 0:01:34.6]} 25.
Bg2 {[%clk 0:01:47.1]} 25... h5 {[%clk 0:01:31.5]} 26. Ra7 {[%clk 0:01:45.5]}
26... h4 {[%clk 0:00:29.2]} 27. Rxb7 {[%clk 0:01:42.4]} 27... Nh5 {[%clk
0:00:29.3]} 28. Kh2 {[%clk 0:01:33.2]} 28... g4 {[%clk 0:00:20.8]} 29. hxg4
{[%clk 0:01:31.5]} 29... Nf4 {[%clk 0:00:20.2]} 30. gxf4 {[%clk 0:01:26.6]}
30... Qxf4+ {[%clk 0:00:22.1]} 31. Kg1 {[%clk 0:01:27]} 31... Bxg4 {[%clk
0:00:21.8]} 32. Qc4 {[%clk 0:01:19.4]} 32... d3 {[%clk 0:00:19.7]} 33. e5 {[%clk
0:00:56.9]} 33... Qf5 {[%clk 0:00:06]} 34. Qe4 {[%clk 0:00:52.1]} 34... d2
{[%clk 0:00:06.1]} 35. Qf4 {[%clk 0:00:48.9]} 35... d1=Q+ {[%clk 0:00:06.4]} 36.
Bf1 {[%clk 0:00:50.2]} 36... Qxf4 {[%clk 0:00:07.4]} 37. Nd7 {[%clk 0:00:49.9]}
37... Rxd7 {[%clk 0:00:07.7]} 0-1

[Event "*** Titled Tuesday Blitz"]
[Site "Chess.com"]
[Date "2019.11.05"]
[Round "7"]
[White "MikeSailer"]
[Black "WPWPWP-2015"]
[Result "0-1"]
[WhiteElo "2208"]
[BlackElo "2473"]
[TimeControl "180+2"]
[EndTime "14:37:10 PST"]
[Termination "WPWPWP-2015 won by resignation"]

1. b4 {[%clk 0:02:57.8]} 1... e5 {[%clk 0:02:35.6]} 2. Bb2 {[%clk 0:02:58.5]}
2... Bd6 {[%clk 0:02:34.8]} 3. Nf3 {[%clk 0:02:56.7]} 3... Qe7 {[%clk
0:02:32.1]} 4. a3 {[%clk 0:02:54.6]} 4... Nf6 {[%clk 0:02:29.8]} 5. e3 {[%clk
0:02:52.9]} 5... O-O {[%clk 0:02:26.1]} 6. Be2 {[%clk 0:02:53.7]} 6... b6 {[%clk
0:02:22.2]} 7. O-O {[%clk 0:02:54.3]} 7... Bb7 {[%clk 0:02:21.3]} 8. d4 {[%clk
0:02:54.6]} 8... e4 {[%clk 0:02:17.7]} 9. Nfd2 {[%clk 0:02:50.9]} 9... c5 {[%clk
0:02:16.6]} 10. dxc5 {[%clk 0:02:43.2]} 10... bxc5 {[%clk 0:02:16.7]} 11. Nc4
{[%clk 0:02:32.6]} 11... Bc7 {[%clk 0:02:17.5]} 12. Nc3 {[%clk 0:02:01.3]} 12...
d5 {[%clk 0:02:10.9]} 13. Na5 {[%clk 0:01:50.3]} 13... Bxa5 {[%clk 0:02:03.9]}
14. bxa5 {[%clk 0:01:51.6]} 14... Rd8 {[%clk 0:02:02.8]} 15. Nb5 {[%clk
0:01:40.7]} 15... Nc6 {[%clk 0:02:00.3]} 16. Bxf6 {[%clk 0:01:34.4]} 16... gxf6
{[%clk 0:01:56.5]} 17. f3 {[%clk 0:01:24.8]} 17... f5 {[%clk 0:01:30]} 18. fxe4
{[%clk 0:01:23.3]} 18... fxe4 {[%clk 0:01:17.8]} 19. Qe1 {[%clk 0:01:21.7]}
19... Qe5 {[%clk 0:01:12.8]} 20. Rb1 {[%clk 0:01:08.1]} 20... Ba6 {[%clk
0:01:10.4]} 21. a4 {[%clk 0:01:07.7]} 21... Nb4 {[%clk 0:01:07.2]} 22. c3 {[%clk
0:00:46.9]} 22... Nd3 {[%clk 0:01:01.6]} 23. Qh4 {[%clk 0:00:38.6]} 23... Bxb5
{[%clk 0:00:57.6]} 24. axb5 {[%clk 0:00:30]} 24... Rd6 {[%clk 0:00:54.3]} 25. b6
{[%clk 0:00:21]} 25... axb6 {[%clk 0:00:54.1]} 26. Rxb6 {[%clk 0:00:19.5]} 26...
Rg6 {[%clk 0:00:50.6]} 27. Rxg6+ {[%clk 0:00:18]} 27... hxg6 {[%clk 0:00:50]}
28. Rf6 {[%clk 0:00:08.3]} 28... Kg7 {[%clk 0:00:46.6]} 29. Rb6 {[%clk
0:00:07.7]} 29... Rxa5 {[%clk 0:00:45.4]} 30. Rb8 {[%clk 0:00:07.7]} 30... Ra1+
{[%clk 0:00:43.9]} 31. Bf1 {[%clk 0:00:08.8]} 31... Qxb8 {[%clk 0:00:42.4]} 32.
Qe7 {[%clk 0:00:08.9]} 32... Rxf1+ {[%clk 0:00:40.3]} 33. Kxf1 {[%clk
0:00:08.4]} 33... Qb2 {[%clk 0:00:39.1]} 0-1

[Event "*** Titled Tuesday Blitz"]
[Site "Chess.com"]
[Date "2019.11.05"]
[Round "7"]
[White "champ2005"]
[Black "DrVitman"]
[Result "1-0"]
[WhiteElo "2918"]
[BlackElo "2712"]
[TimeControl "180+2"]
[EndTime "14:37:15 PST"]
[Termination "champ2005 won on time"]

1. c4 {[%clk 0:03:01.5]} 1... e6 {[%clk 0:03:00.7]} 2. Nf3 {[%clk 0:02:59.6]}
2... d5 {[%clk 0:03:02]} 3. d4 {[%clk 0:03:01.2]} 3... Nf6 {[%clk 0:03:02.7]} 4.
g3 {[%clk 0:03:02.5]} 4... c6 {[%clk 0:02:55.6]} 5. Bg2 {[%clk 0:03:03.1]} 5...
Nbd7 {[%clk 0:02:56.5]} 6. O-O {[%clk 0:03:03.9]} 6... Bd6 {[%clk 0:02:56.6]} 7.
b3 {[%clk 0:02:58.2]} 7... O-O {[%clk 0:02:56.8]} 8. a4 {[%clk 0:02:57]} 8... e5
{[%clk 0:02:50.1]} 9. e3 {[%clk 0:02:46.7]} 9... exd4 {[%clk 0:02:20.5]} 10.
exd4 {[%clk 0:02:48.6]} 10... dxc4 {[%clk 0:02:06.3]} 11. bxc4 {[%clk
0:02:49.1]} 11... c5 {[%clk 0:02:06.3]} 12. d5 {[%clk 0:02:31.5]} 12... Ne5
{[%clk 0:02:05.7]} 13. Nbd2 {[%clk 0:02:32.3]} 13... Bf5 {[%clk 0:01:49.5]} 14.
Bb2 {[%clk 0:02:28.7]} 14... Ng6 {[%clk 0:01:34.2]} 15. Qb3 {[%clk 0:02:21.4]}
15... b6 {[%clk 0:01:31.9]} 16. Rfe1 {[%clk 0:02:17.3]} 16... Re8 {[%clk
0:01:13.5]} 17. h3 {[%clk 0:02:12.6]} 17... Rxe1+ {[%clk 0:01:12.6]} 18. Rxe1
{[%clk 0:02:12.9]} 18... Bd7 {[%clk 0:01:13.4]} 19. Ng5 {[%clk 0:02:02.5]} 19...
Bf8 {[%clk 0:00:51.4]} 20. Nde4 {[%clk 0:01:58.7]} 20... Nxe4 {[%clk 0:00:49.9]}
21. Nxe4 {[%clk 0:02:00.6]} 21... Ne7 {[%clk 0:00:31.2]} 22. g4 {[%clk
0:01:47.1]} 22... Ng6 {[%clk 0:00:25.3]} 23. Qg3 {[%clk 0:01:47.3]} 23... Qb8
{[%clk 0:00:24.3]} 24. d6 {[%clk 0:01:43]} 24... Bxa4 {[%clk 0:00:16]} 25. h4
{[%clk 0:01:40.2]} 25... Bc6 {[%clk 0:00:15.3]} 26. h5 {[%clk 0:01:40.7]} 26...
Bxe4 {[%clk 0:00:16.3]} 27. Bxe4 {[%clk 0:01:40.1]} 27... Bxd6 {[%clk
0:00:17.4]} 28. Qe3 {[%clk 0:01:06]} 28... Nf8 {[%clk 0:00:09.9]} 29. Qc3 {[%clk
0:00:53.4]} 29... Ne6 {[%clk 0:00:08.9]} 30. Bxa8 {[%clk 0:00:50.8]} 30... Qxa8
{[%clk 0:00:09.5]} 31. Rxe6 {[%clk 0:00:50.5]} 31... Bf8 {[%clk 0:00:10]} 32.
Re2 {[%clk 0:00:46.7]} 32... Qc6 {[%clk 0:00:08.1]} 33. Qd3 {[%clk 0:00:42.8]}
33... Qc8 {[%clk 0:00:05.9]} 34. f3 {[%clk 0:00:42]} 34... a6 {[%clk 0:00:06.6]}
35. h6 {[%clk 0:00:41.5]} 1-0

[Event "*** Titled Tuesday Blitz"]
[Site "Chess.com"]
[Date "2019.11.05"]
[Round "7"]
[White "eldur16"]
[Black "mikhaillushenkov"]
[Result "0-1"]
[WhiteElo "2586"]
[BlackElo "2709"]
[TimeControl "180+2"]
[EndTime "14:37:29 PST"]
[Termination "mikhaillushenkov won by resignation"]

1. e4 {[%clk 0:03:01.5]} 1... e6 {[%clk 0:02:58.7]} 2. d4 {[%clk 0:03:01.6]}
2... d5 {[%clk 0:03:00.6]} 3. e5 {[%clk 0:03:02.4]} 3... c5 {[%clk 0:02:57.7]}
4. c3 {[%clk 0:03:03.3]} 4... Qb6 {[%clk 0:02:58.1]} 5. Nf3 {[%clk 0:03:03.4]}
5... Nc6 {[%clk 0:02:58.8]} 6. a3 {[%clk 0:03:02.6]} 6... Bd7 {[%clk 0:02:59.4]}
7. b4 {[%clk 0:03:01.9]} 7... cxd4 {[%clk 0:03:00.6]} 8. cxd4 {[%clk 0:03:02.4]}
8... Rc8 {[%clk 0:03:01.3]} 9. Be3 {[%clk 0:02:52.5]} 9... Nh6 {[%clk
0:03:01.2]} 10. Bd3 {[%clk 0:02:52]} 10... Ng4 {[%clk 0:02:44.9]} 11. O-O {[%clk
0:02:51.9]} 11... Be7 {[%clk 0:02:45.1]} 12. Nbd2 {[%clk 0:02:41.4]} 12... Nxe3
{[%clk 0:02:44.2]} 13. fxe3 {[%clk 0:02:41.7]} 13... Nb8 {[%clk 0:02:39.5]} 14.
Qe2 {[%clk 0:02:41.2]} 14... O-O {[%clk 0:02:35]} 15. e4 {[%clk 0:02:31]} 15...
Rc3 {[%clk 0:02:00.5]} 16. exd5 {[%clk 0:02:30]} 16... exd5 {[%clk 0:01:57.7]}
17. Kh1 {[%clk 0:02:21.7]} 17... a6 {[%clk 0:01:49.7]} 18. Rfd1 {[%clk
0:01:35.7]} 18... Ba4 {[%clk 0:01:45.7]} 19. Rdc1 {[%clk 0:01:32.1]} 19... Rfc8
{[%clk 0:01:44.3]} 20. Rxc3 {[%clk 0:01:18.1]} 20... Rxc3 {[%clk 0:01:46.2]} 21.
Nf1 {[%clk 0:01:18.5]} 21... Qc7 {[%clk 0:01:34.8]} 22. Re1 {[%clk 0:00:52]}
22... Rc1 {[%clk 0:01:28.1]} 23. Ne3 {[%clk 0:00:52.1]} 23... Rxe1+ {[%clk
0:01:22.6]} 24. Qxe1 {[%clk 0:00:52.5]} 24... Bc6 {[%clk 0:01:22.8]} 25. Nf5
{[%clk 0:00:52.2]} 25... Bf8 {[%clk 0:01:22.5]} 26. e6 {[%clk 0:00:52.3]} 26...
fxe6 {[%clk 0:01:21]} 27. Qxe6+ {[%clk 0:00:36.9]} 27... Qf7 {[%clk 0:01:21.7]}
28. Qe5 {[%clk 0:00:29]} 28... Nd7 {[%clk 0:01:20.6]} 29. Qc7 {[%clk 0:00:29.4]}
29... Nf6 {[%clk 0:01:19.4]} 30. Qxf7+ {[%clk 0:00:27.4]} 30... Kxf7 {[%clk
0:01:21.3]} 31. Ne5+ {[%clk 0:00:26.4]} 31... Ke6 {[%clk 0:01:22.3]} 32. g4
{[%clk 0:00:23.6]} 32... g6 {[%clk 0:01:20.7]} 33. Nh4 {[%clk 0:00:17.3]} 33...
Be8 {[%clk 0:01:21.1]} 34. Nhf3 {[%clk 0:00:17.4]} 34... Ne4 {[%clk 0:01:18.8]}
35. Kg2 {[%clk 0:00:17.4]} 35... b5 {[%clk 0:01:14.4]} 36. Kf1 {[%clk
0:00:17.7]} 36... Bh6 {[%clk 0:01:13.9]} 37. Ke2 {[%clk 0:00:18.2]} 37... Bc1
{[%clk 0:01:14.6]} 38. Bc2 {[%clk 0:00:11.3]} 38... Bxa3 {[%clk 0:01:14.3]} 39.
Nd3 {[%clk 0:00:12.2]} 39... Nc3+ {[%clk 0:01:11.8]} 40. Kd2 {[%clk 0:00:12.4]}
40... Na2 {[%clk 0:01:12.1]} 41. Bb3 {[%clk 0:00:12.5]} 41... Nxb4 {[%clk
0:01:12.2]} 42. Nc5+ {[%clk 0:00:13.3]} 42... Kd6 {[%clk 0:01:12.3]} 43. Ne5
{[%clk 0:00:13.6]} 43... g5 {[%clk 0:01:07.3]} 44. h3 {[%clk 0:00:13.4]} 44...
Nc6 {[%clk 0:01:06.9]} 45. Nxc6 {[%clk 0:00:11.7]} 45... Bxc6 {[%clk 0:01:07.4]}
46. Nxa6 {[%clk 0:00:12.5]} 46... Bb7 {[%clk 0:01:07.1]} 0-1